Cogmind - Beta 9.1 @@@ ROGUE MODE // 2019.11.01 @ 17:27:35 Player: MrPainting Result: Destroyed by S-10 Pest with Light Assault Rifle Performance ------------- Evolutions (0) 0 Regions Visited (1) 200 Robots Destroyed (8) 40 Value Destroyed (86) 86 Prototype IDs (0) 0 Alien Tech Used (0) 0 Bonus (0) 0 TOTAL SCORE: 326 Bonus ------- None Cogmind --------- Core Integrity 0/250 Matter 300/300 Energy 100/100 System Corruption 0% Temperature Cool (0) Location -10/Materials Parts ------- Power (1) Propulsion (2) Utility (2) Small Storage Unit Weapon (2) Heavy Hammer Heavy Hammer Inventory (6) Hover Unit Light Assault Rifle Peak State ------------ Power (None) Propulsion Aluminum Leg Aluminum Leg Utility Small Storage Unit Weapon Heavy Hammer Heavy Hammer Inventory Hover Unit [Rating: 7] Favorites ----------- Power Light Ion Engine Engine Light Ion Engine Propulsion Hover Unit Leg Aluminum Leg Hover Unit Hover Unit Flight Unit Flight Unit Utility Small Storage Unit Storage Small Storage Unit Weapon Heavy Hammer Energy Gun Medium Laser Ballistic Gun Light Assault Rifle Impact Weapon Heavy Hammer Build | -11 -10 ------- Run | Scr Mat Slots Evolved . | . . Power . | . . Propulsion . | . . Utility . | . . Weapon . | . . Parts Attached 11 | 2 9 Power 1 | . 1 Engine 1 | . 1 Core . | . . Reactor . | . . Propulsion 5 | . 5 Treads . | . . Leg 2 | . 2 Wheel . | . . Hover 2 | . 2 Flight 1 | . 1 Utility 1 | . 1 Device . | . . Storage 1 | . 1 Processor . | . . Hackware . | . . Protection . | . . Artifact . | . . Weapon 4 | 2 2 Energy Gun 1 | 1 . Energy Cannon . | . . Ballistic Gun 1 | 1 . Ballistic Cannon . | . . Launcher . | . . Special Weapon . | . . Impact Weapon 2 | . 2 Slashing Weapon . | . . Piercing Weapon . | . . Special Melee Weapon . | . . Unidentified Prototypes . | . . Parts Lost 6 | . 6 Power 1 | . 1 Propulsion 3 | . 3 Utility . | . . Weapon 2 | . 2 Highest Loss Streak 4 | . 4 Average Slot Usage (%) 70 | . 70 Engine 5 | . 5 Leg 11 | . 11 Hover 12 | . 12 Storage 12 | . 12 Energy Gun 7 | . 7 Ballistic Gun 7 | . 7 Impact Weapon 12 | . 12 Naked Turns . | . . Heaviest Build 10 | 3 10 Greatest Support 20 | 3 20 Greatest Overweight (x) . | . . Average Overweight (x) . | . . Largest Inventory Capacity 6 | 4 6 Average Capacity 5 | 4 5 Most Carried 4 | 4 4 Average Carried 2 | 2 2 Final Capacity 6 | 4 6 Final Carried 4 | 4 2 Class Distribution -------------------- 100% | Mutant Dominant Class ---------------- Mutant | -10/Materials Resources | -11 -10 ----------- Run | Scr Mat Matter Collected 316 | 220 96 Remotely . | . . Salvage Created 136 | . 136 Parts 13 | . 13 Haulers Intercepted . | . . Recyclers Shooed . | . . Parts Field Recycled . | . . Retrieved Matter . | . . Parts Self-Destructed . | . . Prevented . | . . Kills | -11 -10 ------- Run | Scr Mat Combat Hostiles Destroyed 7 | . 7 Melee 3 | . 3 Guns 3 | . 3 Classes Destroyed 2 | . 2 Operator 1 | . 1 Swarmer 7 | . 7 Best Kill Streak 3 | . 3 Combat Bots Only 3 | . 3 Max Kills in Single Turn 1 | . 1 Gunslinging . | . . Exploded . | . . Melee 1 | . 1 Uniques/NPCs Destroyed . | . . Combat | -11 -10 -------- Run | Scr Mat Damage Taken 722 | . 722 Core 251 | . 251 Absorbed by Shields . | . . Core Remaining (%) 100 | 100 . Volleys Fired 23 | . 23 Largest 2 | . 2 Hottest 70 | . 70 Shots Fired 44 | . 44 Gun 44 | . 44 Cannon . | . . Launcher . | . . Special . | . . Kinetic 21 | . 21 Thermal 23 | . 23 Explosive . | . . Electromagnetic . | . . Robot Hit Streak 6 | . 6 Robot Miss Streak 3 | . 3 Penetration Max . | . . Secondary Targets . | . . Shots Hit Robots 38 | . 38 Core Hits 9 | . 9 Critical Hits . | . . Critical Kills . | . . Critical Parts Destroyed . | . . Melee Attacks 19 | . 19 Impact 19 | . 19 Slashing . | . . Piercing . | . . Sneak Attacks . | . . Combat Hostiles . | . . Follow-up Attacks 1 | . 1 Damage Inflicted 628 | . 628 Guns 238 | . 238 Cannons . | . . Explosions . | . . Melee 390 | . 390 Ramming . | . . Kinetic 64 | . 64 Thermal 174 | . 174 Explosive . | . . Electromagnetic . | . . Impact 390 | . 390 Slashing . | . . Piercing . | . . Highest Corruption . | . . Average Corruption . | . . Corruption Purged . | . . Overload Shots . | . . Overflow Damage 22 | . 22 Projectiles . | . . Explosions . | . . Melee 22 | . 22 Knockbacks 2 | . 2 Impact 2 | . 2 Kinetic . | . . Secondary . | . . Self-Inflicted Damage . | . . Shots . | . . Rammed . | . . Targets Rammed . | . . Kicked . | . . Crushed . | . . Highest Temperature 322 | . 322 Average Temperature 136 | . 136 Received Heat Transfer 72 | . 72 Siege Activations . | . . Robots Corrupted . | . . Combat Hostiles . | . . Parts Fried 3 | . 3 Impact Corruptions 3 | . 3 Robots Melted . | . . Combat Hostiles . | . . Parts Melted . | . . Heat Transferred 518 | . 518 Parts Sabotaged . | . . Parts Stolen . | . . Parts Stripped . | . . Power Chain Reactions . | . . Missiles Intercepted . | . . Alert | -11 -10 ------- Run | Scr Mat Peak Influence 140 | . 140 Average Influence 71 | . 81 Maximum Alert Level . | . . Low Security (%) 100 | . . Level 1 . | . . Level 2 . | . . Level 3 . | . . Level 4 . | . . Level 5 . | . . High Security . | . . Max Security . | . . Squads Dispatched 1 | . 1 Investigation . | . . Extermination . | . . Reinforcement 1 | . 1 Assault . | . . Garrison . | . . Intercept . | . . Construction Impeded . | . . Haulers Reinforced . | . . Stealth | -11 -10 --------- Run | Scr Mat Distress Signals . | . . Communications Jammed . | . . Distress Signals . | . . Times Spotted 12 | . 12 Peak Tracking Total 4 | . 4 Tactical Retreats 2 | . 2 Traps | -11 -10 ------- Run | Scr Mat Traps Triggered . | . . Indirectly . | . . Trap Hack Attempts . | . . Triggered . | . . Disarmed . | . . Reprogrammed . | . . Reused . | . . Traps Extracted . | . . Installed . | . . Triggered . | . . Machines | -11 -10 ---------- Run | Scr Mat Machines Disabled . | . . Max in Single Turn . | . . Machines Sabotaged . | . . Garrisons Compromised . | . . Overloaded Fab Kills . | . . Fab Network Shutdowns . | . . Hacking | -11 -10 --------- Run | Scr Mat Machines Accessed . | . . Terminals . | . . Fabricators . | . . Repair Stations . | . . Recycling Units . | . . Scanalyzers . | . . Garrison Access . | . . Total Hacks . | . . Successful . | . . Failed . | . . Catastrophic . | . . Database Lockouts . | . . Manual . | . . Terminals . | . . Fabricators . | . . Repair Stations . | . . Recycling Units . | . . Scanalyzers . | . . Garrison Access . | . . Terminal Hacks . | . . Fabricator Hacks . | . . Repair Station Hacks . | . . Recycling Unit Hacks . | . . Scanalyzer . | . . Garrison Access Hacks . | . . Unauthorized Hacks . | . . Terminals . | . . Fabricators . | . . Repair Stations . | . . Recycling Units . | . . Scanalyzers . | . . Garrison Access . | . . Data Cores Recovered . | . . Used . | . . Hacking Detections . | . . Full Trace Events . | . . Feedback Events . | . . Feedback Blocked . | . . Robot Schematics Acquired . | . . Robots Built . | . . Matter . | . . Time . | . . Total Robot Build Rating . | . . Part Schematics Acquired . | . . Parts Built . | . . Matter . | . . Time . | . . Total Part Build Rating . | . . Parts Repaired . | . . Time . | . . Parts Recycled . | . . Recycled Matter . | . . Retrieved Matter . | . . Retrieved Components . | . . Parts Scanalyzed . | . . Part Schematics Acquired . | . . Parts Damaged . | . . Bothacking | -11 -10 ------------ Run | Scr Mat Used RIF Installer . | . . Robots Hacked . | . . Non-combat . | . . Combat . | . . Robot Hacks Applied . | . . Relay Couplers Released . | . . Robots Rewired . | . . Allies Hacked . | . . Hacks Repelled . | . . Allies | -11 -10 -------- Run | Scr Mat Total Allies . | . . Largest Group . | . . Highest-Rated Group . | . . Highest-Rated Ally . | . . Total Orders . | . . Ally Attacks . | . . Total Damage . | . . Kills . | . . Allies Corrupted . | . . Allies Melted . | . . Intel | -11 -10 ------- Run | Scr Mat Robot Analysis Total . | . . Derelict Logs Recovered . | . . Drone Launches . | . . Drone Recoveries . | . . Exploration | -11 -10 ------------- Run | Scr Mat Turns Passed 250 | 32 218 Spaces Moved 165 | 45 120 Core 70 | 45 25 Treads . | . . Legs 31 | . 31 Wheels . | . . Hover 64 | . 64 Flight . | . . Fastest Speed 50 | 50 50 Average Speed 65 | 50 71 Slowest Speed 120 | 50 120 Overloaded Moves . | . . Propulsion Burnouts . | . . Robots Hopped . | . . Cave-ins Triggered . | . . Exploration Rate (%) 9 | 4 15 Regions Visited 1 Branch Regions . Pre-discovered Areas . | . . Known Exits Taken . | . . Unknown Exits Taken 1 | 1 . Scrap Searched . | . . Spaces Dug . | . . Terrain Destroyed . | . . Melee . | . . Projectile . | . . AOE . | . . Actions | -11 -10 --------- Run | Scr Mat Total 229 | 54 175 Wait . | . . Move 164 | 44 120 Hop . | . . Pick Up 10 | 7 3 Fast Attach 4 | . 4 Attach 6 | 2 4 Detach . | . . Swap 1 | . 1 Drop 3 | 1 2 Fire 23 | . 23 Melee 18 | . 18 Ram . | . . Kick . | . . Crush . | . . Escape Stasis . | . . Rewire . | . . Trap . | . . Miscellaneous . | . . Route ------- -11/Scrapyard -10/Materials History --------- Turn | Location | Event 13 | -11/Scrapyard | Discovered new exit (range 15) 33 | -11/Scrapyard | Entered Materials 185 | -10/Materials | Lost 4 parts (1p1n2w) 212 | -10/Materials | Core integrity fell below 50% 240 | -10/Materials | Core integrity fell below 20% 251 | -10/Materials | Destroyed by S-10 Pest with Light Assault Rifle Last Messages --------------- 00174_ Hvy. Hammer follow-up attack on S-10 Pest. 00174_ Flight Unit fried. 00174_ S-10 Pest destroyed. 00175_ R-06 Scavenger collects Lgt. Ion Engine. 00183_ S-10 Pest destroyed. 00184_ Acquired 16 matter. 00186_ Acquired 17 matter. 00188_ Acquired 7 matter. 00194_ Acquired Lgt. Assault Rifle. 00222_ Destroyed Flight Unit. 00222_ S-10 Pest system corrupted by crushing effect. 00225_ Destroyed Lgt. Ion Engine. 00225_ S-10 Pest system corrupted by crushing effect. 00225_ S-10 Pest knocked back. 00225_ S-10 Pest misfires. 00226_ S-10 Pest system terminally corrupted. 00226_ Lgt. Assault Rifle fried. 00226_ Flight Unit fried. 00234_ S-10 Pest knocked back. 00244_ Aluminum Leg destroyed. Map ----- +----------------------------------------------------+ | ???????????????????????????????????? | | ???????????????????????????????????? | | ???????????????????????????????????? | | ???????????????????????????????????? | | ???????????????????????????????????? | | ???????????????????????????????????? | | ???????????????????????????????????? | | ???????????????????????????????????? | | ???????????????????????????????????? | | ???????????????????????????????????? | | ???????????????????????????????????? | | ???????????????????????????????????? | | ???????????????????????????########? | | ? ???????????? ??????????# #? | | ???????????? ??????????# #? | | ??????????? ??????????# """ #? | | ???????????# ??######### """ #? | | ???????????# ??# # """ #? | | #??????????# ??# """"" # """ #? | | # #??????????# ??# """"" # #? | | # #??????????# #?# """"" # """ #? | | # #??????????# ### """"" # """ #? | | + +??????????# ## """"" # """ #? | | # #??????????# + """"" # """ #? | | # #??????????# ## """"" # #? | | # #??????????# ## s @s# =%= #? | | # ############ ## ####/###? | | # + # ##+####### [*#?? | | # # * + *%= * #?? | | # # # T #?? | | # # # ## ## #?? | | # # ####### * ### ##?? | | # # #?????# !!!!#?# #??? | | ##### #?????#//!!!!#?# #??? | | ????# * #?????########?# #??? | | ????###########??????????????# #??? | | ?????????????????????????????####??? | | ???????????????????????????????????? | | ???????????????????????????????????? | | ???????????????????????????????????? | | ???????????????????????????????????? | | ???????????????????????????????????? | | ???????????????????????????????????? | | | | | | | | | | | | | | | +----------------------------------------------------+ Best States ------------- Heat Dissipation 25 Energy Generation 10 Energy Capacity 125 Matter Stores 300 Matter Capacity 300 Sight Range 16 Terrain Scan Density 10 Evasion (%) 53 Item Schematics ----------------- None Robot Schematics ------------------ None Fabricated ------------ Nothing Alien Tech Used ----------------- None Achievements -------------- None Challenges ------------ None Game ------ Seed SubatomicCombatKatana Manual? 0 Play Time 00:06:21 Cumulative 86.4 hours Start 2019.11.01 @ 17:24:00 End 2019.11.01 @ 17:27:35 Sessions 1 Manual Loads 0 Difficulty Rogue Special Mode None Game No. 138 Rogue 138 Adventurer 0 Explorer 0 Win Type - Total 0 Types 0/0/0/0/0/0/0 Lore% 30 Gallery% 43 Achievement% 31 Wizard Run 0 Options --------- ASCII 0 Keyboard 0 Movement Mouse Keybinds 0 Fullscreen 1 Font 18/SmallcapsGlow Map View 76x50 Tactical HUD 1 Map Filters NONE Filters NONE Steam 1 RUN: c7f3a412-5801-4f8b-96c9-47638dd511eb